Cogmind - Beta 16 --- EXPLORER MODE // 2025.11.14 @ 07:19:01 Player: viper Result: Destroyed by SF-KV0(R) with Subdweller Machine Gun Performance ------------- Evolutions (0) 0 Regions Visited (2) 400 Robots Destroyed (16) 80 Value Destroyed (344) 344 Prototype IDs (2) 40 Alien Tech Used (0) 0 Bonus (0) 0 TOTAL SCORE: 864 Bonus ------- None Cogmind --------- Core Integrity 0/250 Matter 300/300 Energy 250/250 System Corruption 0% Temperature Cool (0) Movement Core (500) Ox9 Location -10/Subcaves Parts ------- > --- POWER (1) -------- Ion Engine > --- PROPULSION (2) --- (None) > --- UTILITY (3) ------ Large Storage Unit Utility Shielding > --- WEAPON (2) ------- Ripper > --- INVENTORY (15) --- Ion Engine Ion Engine Aluminum Leg Aluminum Leg High-capacity Matter Pod (200) Structural Scanner Signal Interpreter Terrain Scanner Targeting Computer Tractor Beam Light Assault Rifle Makeshift Hammer Peak State ------------ > --- POWER ------------ Ion Engine > --- PROPULSION ------- Aluminum Leg Aluminum Leg > --- UTILITY ---------- Large Storage Unit Targeting Computer Utility Shielding > --- WEAPON ----------- Light Cannon Ripper > --- INVENTORY -------- Ion Engine Ion Engine Aluminum Leg Aluminum Leg High-capacity Matter Pod Structural Scanner Signal Interpreter Terrain Scanner Targeting Computer Tractor Beam Light Assault Rifle Makeshift Hammer [Rating: 12] Favorites ----------- Power Ion Engine Engine Ion Engine Propulsion Aluminum Leg Leg Aluminum Leg Utility Targeting Computer Storage Large Storage Unit Processor Targeting Computer Protection Utility Shielding Weapon Assault Rifle Ballistic Gun Assault Rifle Ballistic Cannon Light Cannon Slashing Weapon Ripper Build | -11 -10 -10 ------- Run | Yrd Mat Sub Slots Evolved 1 | . 1 . Power . | . . . Propulsion . | . . . Utility 1 | . 1 . Weapon . | . . . Parts Attached 14 | 7 6 1 Power 2 | 1 1 . Engine 2 | 1 1 . Core . | . . . Reactor . | . . . Propulsion 4 | 2 2 . Treads . | . . . Leg 4 | 2 2 . Wheel . | . . . Hover . | . . . Flight . | . . . Utility 4 | 2 2 . Device . | . . . Storage 2 | 1 1 . Processor 1 | 1 . . Hackware . | . . . Protection 1 | . 1 . Artifact . | . . . Weapon 4 | 2 1 1 Energy Gun . | . . . Energy Cannon . | . . . Ballistic Gun 2 | 2 . . Ballistic Cannon 1 | . 1 . Launcher . | . . . Special Weapon . | . . . Impact Weapon . | . . . Slashing Weapon 1 | . . 1 Piercing Weapon . | . . . Special Melee Weapon . | . . . Unidentified Prototypes . | . . . Parts Lost 5 | . . 5 Power . | . . . Propulsion 2 | . . 2 Utility 1 | . . 1 Weapon 2 | . . 2 Highest Loss Streak 5 | . . 5 To Critical Strikes . | . . . Average Backups 9 | 1 8 11 Power 1 | . 1 2 Propulsion 1 | . 1 2 Utility 5 | . 4 6 Weapon 1 | . 1 1 Tool/Special . | . . . Unused Backups 11 | . 3 8 Power 2 | . 1 1 Propulsion . | . . . Utility 7 | . 1 6 Weapon 2 | . 1 1 Tool/Special . | . . . Average Slot Usage (%) 99 | . 100 97 Engine 12 | . 12 12 Leg 24 | . 25 23 Storage 12 | . 12 12 Processor 11 | . 12 11 Protection 12 | . 12 12 Ballistic Gun 13 | . 15 11 Ballistic Cannon 10 | . 9 11 Peak Build Rating 12 | 7 9 12 Average Rating 8 | 5 8 8 On Entrance 5 | . 7 9 Avg Prop Armor Cover (%) 25 | 25 . . Naked Turns . | . . . Heaviest Build 31 | 18 31 31 Greatest Support 20 | 20 20 20 Greatest Overweight (x) 9 | 3 1 9 Average Overweight (x) . | . . 1 Largest Inventory Capacity 15 | 10 15 15 Average Capacity 13 | 9 12 15 Most Carried 13 | 4 11 13 Average Carried 9 | 1 8 11 Final Capacity 15 | 10 15 15 Final Carried 12 | 4 11 12 Class Distribution -------------------- 100% | Hacker-Mutant Dominant Class ---------------- Hacker-Mutant | -10/Materials Hacker-Mutant | -10/Subcaves Resources | -11 -10 -10 ----------- Run | Yrd Mat Sub Matter Collected 847 | 270 493 84 Remotely . | . . . Salvage Created 487 | . 405 82 Parts 32 | . 28 4 Haulers Intercepted 1 | . 1 . Recyclers Shooed 1 | . 1 . Parts Field Recycled . | . . . Retrieved Matter . | . . . Parts Self-Destructed . | . . . Prevented . | . . . Parts Restored . | . . . Kills | -11 -10 -10 ------- Run | Yrd Mat Sub Combat Hostiles Destroyed 13 | . 11 2 Melee 1 | . . 1 Guns 4 | . 4 . Cannons 8 | . 7 1 Classes Destroyed 6 | . 5 1 Hauler 1 | . 1 . Recycler 1 | . 1 . Watcher 1 | . 1 . Swarmer 6 | . 6 . Grunt 5 | . 5 . Subdweller 2 | . . 2 Best Kill Streak 3 | . 3 1 Combat Bots Only 3 | . 3 1 Max Kills in Single Turn 1 | . 1 1 Gunslinging . | . . . Exploded . | . . . Melee 1 | . . 1 Uniques/NPCs Destroyed . | . . . Combat | -11 -10 -10 -------- Run | Yrd Mat Sub Hostile Shots Fired 81 | . 18 63 Missed 16 | . 5 11 Hits 65 | . 13 52 Projectile 65 | . 13 52 Critical Strikes 1 | . . 1 Damage Taken 777 | . 88 689 Core 251 | . 11 240 Absorbed by Shields . | . . . Redirected to Shielding 12 | . 1 11 Ignored by Resistances 471 | . 61 410 Core Remaining (%) 100 | 100 . . Volleys Fired 34 | . 19 15 Largest 2 | . 2 2 Hottest 50 | . 50 50 Shots Fired 66 | . 38 28 Gun 32 | . 19 13 Cannon 34 | . 19 15 Launcher . | . . . Special . | . . . Kinetic 66 | . 38 28 Thermal . | . . . Explosive . | . . . Electromagnetic . | . . . Robot Hit Streak 31 | . 20 31 Robot Miss Streak 1 | . 1 . Penetration Max . | . . . Secondary Targets . | . . . Shots Hit Robots 68 | . 30 38 Core Hits 18 | . 15 3 Critical Kills 1 | . 1 . Critical Parts Destroyed . | . . . Critical Strikes 1 | . 1 . Destroy 1 | . 1 . Melee Attacks 10 | . . 10 Impact . | . . . Slashing 10 | . . 10 Piercing . | . . . Sneak Attacks . | . . . Combat Hostiles . | . . . Follow-up Attacks . | . . . Damage Inflicted 894 | . 452 442 Guns 275 | . 213 62 Cannons 324 | . 237 87 Explosions . | . . . Melee 293 | . . 293 Ramming 2 | . 2 . Kinetic 599 | . 450 149 Thermal . | . . . Explosive . | . . . Electromagnetic . | . . . Impact . | . . . Slashing 293 | . . 293 Piercing . | . . . Highest Corruption . | . . . Average Corruption . | . . . Corruption Purged . | . . . Corruption Blocked . | . . . Overload Shots . | . . . Overflow Damage . | . . . Projectiles . | . . . Explosions . | . . . Melee . | . . . Knockbacks 3 | . 1 2 Impact . | . . . Kinetic 3 | . 1 2 Secondary . | . . . Self-Inflicted Damage . | . . . Shots . | . . . Rammed . | . . . Targets Rammed 1 | . 1 . Kicked 1 | . 1 . Crushed . | . . . Highest Temperature 2 | . 2 . Average Temperature 2 | . 2 . Received Heat Transfer 180 | . 18 162 Siege Activations . | . . . Martial Activations . | . . . Shielding Activations . | . . . Robots Disrupted . | . . . Combat Hostiles . | . . . Robots Corrupted . | . . . Combat Hostiles . | . . . Parts Fried . | . . . Impact Corruptions . | . . . Robots Melted . | . . . Combat Hostiles . | . . . Parts Melted . | . . . Heat Transferred . | . . . Parts Sabotaged . | . . . Parts Stolen . | . . . Parts Stripped . | . . . Power Chain Reactions . | . . . Alert | -11 -10 -10 ------- Run | Yrd Mat Sub Maximum Alert Level . | . . . Low Security (%) 100 | 100 100 . Level 1 . | . . . Level 2 . | . . . Level 3 . | . . . Level 4 . | . . . Level 5 . | . . . High Security . | . . . Max Security . | . . . Peak Influence 55 | . 55 . Initial . | . . . Average 6 | . 6 . Influence Increases 319 | . 319 . Destroy 0b10 Robot/C 220 | . 220 . Destroy 0b10 Robot/NC 15 | . 15 . Destroy Leader 54 | . 54 . Successful Hack 26 | . 26 . Disable Machine 4 | . 4 . Influence Decreases 319 | . 319 . Time Decay 319 | . 319 . Squads Dispatched 2 | . 2 . Investigation 2 | . 2 . Extermination . | . . . Reinforcement . | . . . Assault . | . . . Garrison . | . . . Intercept . | . . . Searches Triggered . | . . . Construction Impeded . | . . . Haulers Reinforced . | . . . Active Scanning Responses . | . . . Cargo Convoy Interrupts . | . . . Stealth | -11 -10 -10 --------- Run | Yrd Mat Sub Distress Signals 1 | . 1 . Communications Jammed . | . . . Distress Signals . | . . . Times Spotted 15 | . 12 3 Peak Tracking Total 2 | . 2 2 Tactical Retreats . | . . . Traps | -11 -10 -10 ------- Run | Yrd Mat Sub Traps Triggered 1 | . 1 . Indirectly . | . . . Trap Hack Attempts . | . . . Triggered . | . . . Disarmed . | . . . Reprogrammed . | . . . Reused . | . . . Traps Extracted . | . . . Installed . | . . . Triggered . | . . . Machines | -11 -10 -10 ---------- Run | Yrd Mat Sub Machines Disabled 1 | . 1 . Max in Single Turn 1 | . 1 . Machines Repaired . | . . . Machines Dismantled . | . . . Machines Sabotaged . | . . . Overloaded Fab Kills . | . . . Hacking | -11 -10 -10 --------- Run | Yrd Mat Sub Machines Accessed 9 | . 7 2 Terminals 7 | . 7 . Fabricators . | . . . Repair Stations . | . . . Recycling Units . | . . . Scanalyzers . | . . . Garrison Access . | . . . Total Hacks 31 | . 28 3 Successful 18 | . 15 3 Failed 13 | . 13 . Catastrophic . | . . . Database Lockouts . | . . . Manual . | . . . Terminals 28 | . 28 . Fabricators . | . . . Repair Stations . | . . . Recycling Units . | . . . Scanalyzers . | . . . Garrison Access . | . . . Terminal Hacks 18 | . 15 3 Record 3 | . 2 1 Prototype ID Bank 1 | . 1 . Open Door 1 | . . 1 Branch Access Points 1 | . 1 . Emergency Access Points 1 | . 1 . Terminal Index 1 | . 1 . Repair Station Index 1 | . 1 . Scanalyzer Index 1 | . 1 . Locate Traps 1 | . 1 . Dispatch Records 1 | . 1 . Investigation Status 1 | . 1 . Reinforcement Status 1 | . 1 . Hauler Manifests 1 | . 1 . Zone Layout 2 | . 2 . Release Object 1 | . . 1 Fabricator Hacks . | . . . Repair Station Hacks . | . . . Recycling Unit Hacks . | . . . Scanalyzer . | . . . Garrison Access Hacks . | . . . Unauthorized Hacks . | . . . Terminals . | . . . Fabricators . | . . . Repair Stations . | . . . Recycling Units . | . . . Scanalyzers . | . . . Garrison Access . | . . . Data Cores Recovered . | . . . Used . | . . . Hacking Detections 6 | . 6 . Full Trace Events 3 | . 3 . Feedback Events . | . . . Feedback Blocked . | . . . Robot Schematics Acquired . | . . . Robots Built . | . . . Authchips . | . . . Time . | . . . Total Robot Build Rating . | . . . Part Schematics Acquired . | . . . Parts Built . | . . . Authchips . | . . . Time . | . . . Total Part Build Rating . | . . . Part Studies Acquired . | . . . Parts Repaired . | . . . Time . | . . . Parts Recycled . | . . . Recycled Matter . | . . . Retrieved Matter . | . . . Retrieved Components . | . . . Parts Scanalyzed . | . . . Part Schematics Acquired . | . . . Parts Damaged . | . . . Bothacking | -11 -10 -10 ------------ Run | Yrd Mat Sub Used RIF Installer . | . . . Robots Hacked . | . . . Non-combat . | . . . Combat . | . . . Robot Hacks Applied . | . . . Relay Couplers Released . | . . . Fabnet Peak Effective % . | . . . Robots Rewired . | . . . Allies Hacked . | . . . Hacks Repelled . | . . . Allies | -11 -10 -10 -------- Run | Yrd Mat Sub Total Allies . | . . . Largest Group . | . . . Highest-Rated Group . | . . . Highest-Rated Ally . | . . . Total Orders . | . . . Ally Attacks . | . . . Total Damage . | . . . Kills . | . . . Allies Corrupted . | . . . Allies Melted . | . . . Intel | -11 -10 -10 ------- Run | Yrd Mat Sub Active Infowar (turns) . | . . . Robot Analysis Total . | . . . Derelict Logs Recovered . | . . . Drone Launches . | . . . Drone Recoveries . | . . . Exploration | -11 -10 -10 ------------- Run | Yrd Mat Sub Turns Passed 2402 | 82 1373 947 Spaces Moved 1204 | 58 696 450 Core 22 | 17 . 5 Treads . | . . . Legs 1182 | 41 696 445 Wheels . | . . . Hover . | . . . Flight . | . . . Fastest Speed 50 | 50 120 190 Average Speed 176 | 117 170 193 Slowest Speed 500 | 200 190 500 Overloaded Moves . | . . . Propulsion Burnouts . | . . . Robots Hopped . | . . . Potential Cave-ins . | . . . Cave-ins Triggered . | . . . Exploration Rate (%) 41 | 4 92 29 Regions Visited 2 Branch Regions 1 Pre-discovered Areas . | . . . Known Exits Taken 2 | 1 1 . Unknown Exits Taken . | . . . Scrap Searched 2 | . . 2 Spaces Dug . | . . . Terrain Destroyed . | . . . Melee . | . . . Projectile . | . . . AOE . | . . . Terrain Rammed . | . . . Walls Destroyed . | . . . Machines Disabled . | . . . Actions | -11 -10 -10 --------- Run | Yrd Mat Sub Total 1399 | 68 847 484 Wait 119 | . 114 5 Move 1202 | 57 695 450 Hop . | . . . Pick Up 13 | 4 7 2 Fast Attach 8 | 7 1 . Attach 2 | . 1 1 Detach 1 | . 1 . Swap 4 | . 4 . Drop 4 | . 4 . Fire 34 | . 19 15 Melee 10 | . . 10 Ram . | . . . Kick 1 | . 1 . Crush . | . . . Escape Stasis . | . . . Rewire . | . . . Trap . | . . . Miscellaneous 1 | . . 1 Route ------- -11/Scrapyard -10/Materials (discovered 4 exits: *Mat x2 / *Min / *Sub) -10/Subcaves (discovered 3 exits: *Mat x2 / [*Scr]) History --------- Turn | Location | Event 3 | -11/Scrapyard | Identified exit to Materials 3 | -11/Scrapyard | Discovered exit to Materials (range 15) 83 | -11/Scrapyard | Entered Materials 83 | -10/Materials | Evolved 1 slot: Utility x1 84 | -10/Materials | Met a group of wandering Federalists 313 | -10/Materials | Build established: Hacker-Mutant 354 | -10/Materials | Identified exit to Mines 354 | -10/Materials | Discovered exit to Mines (range 6) 481 | -10/Materials | Identified exit to Materials 481 | -10/Materials | Discovered exit to Materials (range 14) 1214 | -10/Materials | Discovered exit to Materials (range 12) 1437 | -10/Materials | Identified exit to Subcaves 1437 | -10/Materials | Discovered exit to Subcaves (range 6) 1456 | -10/Materials | Entered Subcaves 1457 | -10/Subcaves | Continued accompanying wandering Federalists (3) 1457 | -10/Subcaves | Approached by a straggling Scientist 1477 | -10/Subcaves | Identified exit to Materials 1477 | -10/Subcaves | Discovered exit to Materials (range 5) 1478 | -10/Subcaves | Shifting Twisted Machinery released Sub. Monowheel 1480 | -10/Subcaves | Shifting Twisted Machinery released Mak. Light Armor Plating 1548 | -10/Subcaves | A swath of the cavern ceiling suddenly collapsed 1705 | -10/Subcaves | Wandering Federalist uncovered a shortcut to Scraptown 1822 | -10/Subcaves | Shifting Twisted Machinery released Sub. Laser 1854 | -10/Subcaves | Shifting Twisted Machinery released Mak. Flight Unit 2083 | -10/Subcaves | Released subatomizers from SUBCON Basin 2327 | -10/Subcaves | Discovered exit to Materials (range 11) 2358 | -10/Subcaves | Core integrity fell below 50% 2393 | -10/Subcaves | Core integrity fell below 20% 2403 | -10/Subcaves | Destroyed by SF-KV0(R) with Subdweller Machine Gun Last Messages --------------- 02282_ Found Sub. Power Source. 02282_ Found Ripper. 02282_ Found 59 Matter. 02286_ Acquired Ripper. 02324_ Subatomizers dissect the Flight Unit. 02327_ EXIT=FOUND: MATERIALS 02340_ SF-KV0(R) knocked back. 02347_ Assault Rifle destroyed. 02350_ Subatomizers dissect the Flight Unit. 02355_ Targeting Computer destroyed. 02359_ Aluminum Leg destroyed. 02367_ Lgt. Cannon destroyed. 02369_ Destroyed Scrap Shield. 02371_ CS-02Q(R) destroyed. 02373_ Aluminum Leg destroyed. 02384_ Subatomizers dissect the Lgt. Assault Rifle. 02385_ SF-KV0(R) affixes Scrap Shield Fragment to Scrap Shield. 02391_ Acquired 14 matter. Map ----- +----------------------------------------------------+ | ?????????????????????????????????????????????????? | | ?????????????????????????????????????????????????? | | ?????????????????????????????????????????????????? | | ?????????????????????????????????????????????????? | | ?????????????????????????????????????????????????? | | ?????????????????????????????????????????????????? | | ?????????????????????????????????????????????????? | | ?????????????????????????????????????????????????? | | ?????????????????????????????????????????????????? | | ?????????????????????????????????????????????????? | | ?????????????????????????????????????????????????? | | ?????????????????????##??????????????????????????? | | ???????????????????## ??????????????????????????? | | ????????????????#?## "?????????????????????????? | | ????????????????# < "?????????????????????????? | | ????????????????# "?????????????????????????? | | ????????????????# " ?????????????????????????? | | ?????????????????# " " ?????????????????????????? | | ????????######???# " ?????????????????????????? | | ????????#*%%"##??#"" ##???????????????????????? | | ????????##" * #?### ##????? ????????????????? | | ??????####### ### ### " ##??? ??????????????? | | ??????# ##&& "## ##?# ==### ?????????????? | | ####### ##&#### #### " !"" ???????????????? | | # # " "##?# ###|%#"#[" ??????????????? | | ### # [@!##?? #??????????????? | | ## R #?????????????????????? | | #### ## #?????????????????????? | | #??############# ### #?????????????????????? | | #??????????????# ##?###?????????????????????? | | #??????????????## #?????????????????????????? | | #???????????????# ##?????????????????????????? | | #???????????????# #?????????????????????????? | | ##???????????????# ????????????????????????? | | ##????????????????# ???????????????????????? | | #????????????????? #??????????????????????? | | #?????????????????# #??????????????????????? | | ??????????????????## #??????????????????????? | | ??????????????????? ??????????????????????? | | #?????????????????? # ???????????????????????? | | ###???????????????? ? ????????????????????????? | | ##??????????????? ? ??????????????????????????? | | #?????????????????????????????????????????????? | | #?????????????????????????????????????????????? | | ##?????????????????????????????????????????????? | | ##??????????????????????????????????????????????? | | ##??????????????????????????????????????????????? | | #??????????????????????????????????????????????? | | ##??????????????????????????????????????????????? | | ##???????????????????????????????????????????????? | +----------------------------------------------------+ Best States ------------- Heat Dissipation 25 Energy Generation 10 Energy Capacity 250 Matter Stores 300 Matter Capacity 300 Sight Range 16 Terrain Scan Density 10 Resistance: KI 35 Resistance: TH 35 Resistance: EX 35 Resistance: EM 35 Resistance: I 35 Resistance: S 35 Resistance: P 35 Utility Shielding 33 Evasion (%) 55 Targeting Accuracy 5 Offensive Hacking 20 Item Schematics ----------------- None Robot Schematics ------------------ None Fabricated ------------ Nothing Repaired ---------- Nothing Studied --------- None Alien Tech Used ----------------- None Achievements -------------- Strength In Numbers Challenges ------------ None Game ------ Seed InertialMappingShearcannon Manual? 0 Play Time 00:18:36 Cumulative 2196.8 hours Start 2025.11.14 @ 07:04:44 End 2025.11.14 @ 07:19:01 Sessions 1 Manual Loads 0 Difficulty Explorer Special Mode None Game No. 1069 Rogue 62 Adventurer 0 Explorer 1007 Win Type - Total 11 Types 11/0/0/0/0/0/0/0/0/0 Lore% 62 Gallery% 71 Achievement% 44 Wizard Run 0 Options --------- Layout 1 ASCII 0 Keyboard 0 Movement Mouse Keybinds 0 Fullscreen 1 Font 48/Smallcaps Map View 50x35 Zoom Use 0% Tactical HUD 1 Map Filters NONE Filters NONE Steam 1 RUN: 2980eeb2-583f-49df-9483-a99c4c110a17